[Event "Titled Tuesday Blitz July 13 2021"]
[White "Skatchkov, Valery"]
[Black "Tanenbaum, Zachary"]
[WhiteFideId "24195812"]
[BlackFideId "2060850"]
[WhiteElo "2199"]
[BlackElo "2165"]
[Result "1-0"]
[Round "06"]
[TimeControl "180+1"]
[Date "2021.07.13"]
[WhiteClock "0:02:01"]
[BlackClock "0:00:15"]

1. c4 {[%clk 0:03:00]}  e5 {[%clk 0:02:59]} 2. Nc3 {[%clk 0:03:00]}  Nf6 {[%clk 0:02:59]} 3. g3 {[%clk 0:02:58]}  Nc6 {[%clk 0:02:59]} 4. Bg2 {[%clk 0:02:58]}  Bc5 {[%clk 0:03:00]} 5. e3 {[%clk 0:02:57]}  d6 {[%clk 0:03:00]} 6. Nge2 {[%clk 0:02:56]}  O-O {[%clk 0:03:00]} 7. O-O {[%clk 0:02:57]}  Re8 {[%clk 0:02:59]} 8. f4 {[%clk 0:02:57]}  e4 {[%clk 0:02:45]} 9. b3 {[%clk 0:02:52]}  Nb4 {[%clk 0:02:44]} 10. a3 {[%clk 0:02:46]}  Nd3 {[%clk 0:02:44]} 11. Qc2 {[%clk 0:02:47]}  Bf5 {[%clk 0:02:42]} 12. b4 {[%clk 0:02:44]}  Bb6 {[%clk 0:02:42]} 13. Nb5 {[%clk 0:02:44]}  Qd7 {[%clk 0:02:18]} 14. Bb2 {[%clk 0:02:40]}  a6 {[%clk 0:01:28]} 15. Nbd4 {[%clk 0:02:40]}  Bh3 {[%clk 0:01:24]} 16. f5 {[%clk 0:02:32]}  Bxg2 {[%clk 0:01:08]} 17. Kxg2 {[%clk 0:02:33]}  Rac8 {[%clk 0:00:45]} 18. Nf4 {[%clk 0:02:24]}  Ne5 {[%clk 0:00:37]} 19. c5 {[%clk 0:02:21]}  Ba7 {[%clk 0:00:33]} 20. h3 {[%clk 0:02:14]}  d5 {[%clk 0:00:33]} 21. g4 {[%clk 0:02:13]}  c6 {[%clk 0:00:33]} 22. g5 {[%clk 0:02:11]}  Qe7 {[%clk 0:00:23]} 23. gxf6 {[%clk 0:02:11]}  Qxf6 {[%clk 0:00:24]} 24. Kh2 {[%clk 0:02:06]}  Qh4 {[%clk 0:00:22]} 25. Rg1 {[%clk 0:02:04]}  Bb8 {[%clk 0:00:22]} 26. Raf1 {[%clk 0:02:03]}  Nd3 {[%clk 0:00:20]} 27. Ne2 {[%clk 0:02:01]}  Kh8 {[%clk 0:00:16]} 28. Bxg7+ {[%clk 0:02:00]}  Kg8 {[%clk 0:00:15]} 29. Bf6+ {[%clk 0:02:01]} 1-0


[Site "https://www.chess.com"]

[Event "Titled Tuesday Blitz July 13 2021"]
[White "Tokman, Ariel"]
[Black "Wong, Yinn Long"]
[WhiteFideId "117420"]
[BlackFideId "5707684"]
[WhiteElo "2345"]
[BlackElo "2016"]
[Result "0-1"]
[Round "06"]
[TimeControl "180+1"]
[Date "2021.07.13"]
[WhiteClock "0:00:02"]
[BlackClock "0:00:09"]

1. e4 {[%clk 0:03:00]}  c5 {[%clk 0:03:00]} 2. Nf3 {[%clk 0:03:00]}  g6 {[%clk 0:03:01]} 3. h4 {[%clk 0:02:59]}  Bg7 {[%clk 0:03:00]} 4. h5 {[%clk 0:02:59]}  Nc6 {[%clk 0:03:01]} 5. Bc4 {[%clk 0:02:58]}  e6 {[%clk 0:03:01]} 6. d3 {[%clk 0:02:57]}  Nge7 {[%clk 0:03:02]} 7. h6 {[%clk 0:02:57]}  Bf6 {[%clk 0:03:02]} 8. Qd2 {[%clk 0:02:56]}  O-O {[%clk 0:02:59]} 9. Qf4 {[%clk 0:02:53]}  Bh8 {[%clk 0:02:50]} 10. Nc3 {[%clk 0:02:23]}  d5 {[%clk 0:02:49]} 11. Bb3 {[%clk 0:02:24]}  b5 {[%clk 0:02:32]} 12. a4 {[%clk 0:01:33]}  b4 {[%clk 0:02:27]} 13. Ne2 {[%clk 0:01:30]}  Ba6 {[%clk 0:02:13]} 14. Ng3 {[%clk 0:01:29]}  c4 {[%clk 0:01:58]} 15. dxc4 {[%clk 0:01:20]}  dxc4 {[%clk 0:01:59]} 16. Ba2 {[%clk 0:01:20]}  c3 {[%clk 0:01:45]} 17. Rb1 {[%clk 0:01:05]}  Nd4 {[%clk 0:01:33]} 18. Nxd4 {[%clk 0:01:00]}  Qxd4 {[%clk 0:01:34]} 19. Be3 {[%clk 0:00:57]}  Qd7 {[%clk 0:01:34]} 20. Rh5 {[%clk 0:00:31]}  cxb2 {[%clk 0:01:11]} 21. e5 {[%clk 0:00:24]}  gxh5 {[%clk 0:00:53]} 22. Nxh5 {[%clk 0:00:22]}  f6 {[%clk 0:00:34]} 23. exf6 {[%clk 0:00:09]}  Ng6 {[%clk 0:00:34]} 24. Qg4 {[%clk 0:00:03]}  Rae8 {[%clk 0:00:29]} 25. Ng7 {[%clk 0:00:03]}  Bxg7 {[%clk 0:00:26]} 26. hxg7 {[%clk 0:00:01]}  Rf7 {[%clk 0:00:27]} 27. Rxb2 {[%clk 0:00:02]}  Rxf6 {[%clk 0:00:22]} 28. Rxb4 {[%clk 0:00:01]}  Rd8 {[%clk 0:00:09]} 29. Rd4 {[%clk 0:00:01]}  Qe8 {[%clk 0:00:09]} 30. Bxe6+ {[%clk 0:00:01]}  Kxg7 {[%clk 0:00:08]} 31. Rxd8 {[%clk 0:00:02]}  Qxd8 {[%clk 0:00:09]} 0-1


[Site "https://www.chess.com"]

[Event "Titled Tuesday Blitz July 13 2021"]
[White "Tristan, Leonardo"]
[Black "Sydoryka, Vladyslav"]
[WhiteFideId "113816"]
[BlackFideId "14145928"]
[WhiteElo "2404"]
[BlackElo "2200"]
[Result "0-1"]
[Round "06"]
[TimeControl "180+1"]
[Date "2021.07.13"]
[WhiteClock "0:00:18"]
[BlackClock "0:00:04"]

1. d4 {[%clk 0:03:00]}  Nf6 {[%clk 0:02:58]} 2. Bg5 {[%clk 0:03:01]}  e6 {[%clk 0:02:58]} 3. e4 {[%clk 0:03:00]}  h6 {[%clk 0:02:56]} 4. Bxf6 {[%clk 0:03:01]}  Qxf6 {[%clk 0:02:57]} 5. c3 {[%clk 0:03:01]}  d6 {[%clk 0:02:55]} 6. Bc4 {[%clk 0:03:01]}  g6 {[%clk 0:02:46]} 7. Ne2 {[%clk 0:03:01]}  Bg7 {[%clk 0:02:47]} 8. O-O {[%clk 0:03:02]}  Nd7 {[%clk 0:02:47]} 9. Nd2 {[%clk 0:03:01]}  e5 {[%clk 0:02:41]} 10. f4 {[%clk 0:03:00]}  exd4 {[%clk 0:02:28]} 11. cxd4 {[%clk 0:03:00]}  O-O {[%clk 0:02:27]} 12. e5 {[%clk 0:02:43]}  Qe7 {[%clk 0:02:23]} 13. f5 {[%clk 0:02:44]}  gxf5 {[%clk 0:02:18]} 14. Ng3 {[%clk 0:02:44]}  Nb6 {[%clk 0:02:15]} 15. Nxf5 {[%clk 0:02:34]}  Bxf5 {[%clk 0:02:14]} 16. Rxf5 {[%clk 0:02:35]}  dxe5 {[%clk 0:02:10]} 17. Bb3 {[%clk 0:02:35]}  exd4 {[%clk 0:02:03]} 18. Kh1 {[%clk 0:02:22]}  c5 {[%clk 0:01:56]} 19. Qf1 {[%clk 0:02:16]}  Rae8 {[%clk 0:01:46]} 20. a4 {[%clk 0:01:56]}  Nd7 {[%clk 0:00:59]} 21. Nc4 {[%clk 0:01:45]}  b6 {[%clk 0:00:38]} 22. h3 {[%clk 0:01:42]}  Kh8 {[%clk 0:00:27]} 23. Qf4 {[%clk 0:01:39]}  Qe2 {[%clk 0:00:18]} 24. Rf1 {[%clk 0:01:16]}  f6 {[%clk 0:00:17]} 25. Nd6 {[%clk 0:01:10]}  Re7 {[%clk 0:00:18]} 26. Bc4 {[%clk 0:01:06]}  Qe3 {[%clk 0:00:16]} 27. Qg4 {[%clk 0:01:03]}  Ne5 {[%clk 0:00:16]} 28. Rxe5 {[%clk 0:00:53]}  Rxe5 {[%clk 0:00:03]} 29. Nf7+ {[%clk 0:00:41]}  Rxf7 {[%clk 0:00:04]} 30. Bxf7 {[%clk 0:00:42]}  f5 {[%clk 0:00:05]} 31. Qxg7+ {[%clk 0:00:18]}  Kxg7 {[%clk 0:00:04]} 0-1


[Site "https://www.chess.com"]

[Event "Titled Tuesday Blitz July 13 2021"]
[White "Tsaruk, Maksim"]
[Black "Dowgird, Filip"]
[WhiteFideId "13511173"]
[BlackFideId "1121235"]
[WhiteElo "2184"]
[BlackElo "2209"]
[Result "1/2-1/2"]
[Round "06"]
[TimeControl "180+1"]
[Date "2021.07.13"]
[WhiteClock "0:00:05"]
[BlackClock "0:00:11"]

1. e4 {[%clk 0:02:56]}  d6 {[%clk 0:03:00]} 2. d4 {[%clk 0:02:55]}  Nf6 {[%clk 0:03:00]} 3. Nc3 {[%clk 0:02:56]}  c6 {[%clk 0:03:00]} 4. Be3 {[%clk 0:02:50]}  Qb6 {[%clk 0:03:00]} 5. Rb1 {[%clk 0:02:35]}  Ng4 {[%clk 0:02:59]} 6. Bc1 {[%clk 0:02:18]}  e5 {[%clk 0:02:56]} 7. Nge2 {[%clk 0:02:15]}  Be7 {[%clk 0:02:41]} 8. f3 {[%clk 0:02:15]}  Nf6 {[%clk 0:02:41]} 9. Be3 {[%clk 0:02:14]}  Qc7 {[%clk 0:02:35]} 10. g3 {[%clk 0:02:11]}  Nbd7 {[%clk 0:02:32]} 11. Bg2 {[%clk 0:02:11]}  b5 {[%clk 0:02:23]} 12. Qd2 {[%clk 0:01:55]}  a6 {[%clk 0:01:57]} 13. O-O {[%clk 0:01:54]}  O-O {[%clk 0:01:55]} 14. h3 {[%clk 0:01:41]}  Bb7 {[%clk 0:01:55]} 15. f4 {[%clk 0:01:27]}  Rfe8 {[%clk 0:01:54]} 16. g4 {[%clk 0:01:02]}  b4 {[%clk 0:01:29]} 17. Nd1 {[%clk 0:00:49]}  exd4 {[%clk 0:01:29]} 18. Bxd4 {[%clk 0:00:41]}  c5 {[%clk 0:01:28]} 19. Bxf6 {[%clk 0:00:41]}  Nxf6 {[%clk 0:01:23]} 20. Ng3 {[%clk 0:00:35]}  Bf8 {[%clk 0:01:17]} 21. g5 {[%clk 0:00:34]}  Nxe4 {[%clk 0:01:16]} 22. Nxe4 {[%clk 0:00:31]}  Bxe4 {[%clk 0:01:16]} 23. Ne3 {[%clk 0:00:20]}  Qb7 {[%clk 0:01:06]} 24. Nd5 {[%clk 0:00:19]}  Qa7 {[%clk 0:00:29]} 25. Rbe1 {[%clk 0:00:17]}  Bf5 {[%clk 0:00:20]} 26. Kh2 {[%clk 0:00:15]}  Rad8 {[%clk 0:00:20]} 27. h4 {[%clk 0:00:14]}  a5 {[%clk 0:00:20]} 28. h5 {[%clk 0:00:14]}  c4 {[%clk 0:00:18]} 29. Ne3 {[%clk 0:00:13]}  Be6 {[%clk 0:00:15]} 30. Bd5 {[%clk 0:00:14]}  c3 {[%clk 0:00:14]} 31. bxc3 {[%clk 0:00:14]}  bxc3 {[%clk 0:00:15]} 32. Qxc3 {[%clk 0:00:15]}  Rc8 {[%clk 0:00:15]} 33. Qd3 {[%clk 0:00:14]}  Bd7 {[%clk 0:00:10]} 34. g6 {[%clk 0:00:10]}  hxg6 {[%clk 0:00:08]} 35. hxg6 {[%clk 0:00:11]}  Be6 {[%clk 0:00:09]} 36. Kg3 {[%clk 0:00:07]}  fxg6 {[%clk 0:00:08]} 37. Bxe6+ {[%clk 0:00:06]}  Rxe6 {[%clk 0:00:07]} 38. Qb3 {[%clk 0:00:03]}  Qf7 {[%clk 0:00:07]} 39. f5 {[%clk 0:00:02]}  gxf5 {[%clk 0:00:07]} 40. Rxf5 {[%clk 0:00:02]}  Rg6+ {[%clk 0:00:07]} 41. Kf4 {[%clk 0:00:02]}  Qxb3 {[%clk 0:00:08]} 42. axb3 {[%clk 0:00:02]}  Re8 {[%clk 0:00:07]} 43. Rd1 {[%clk 0:00:03]}  Rge6 {[%clk 0:00:05]} 44. Nd5 {[%clk 0:00:02]}  Re4+ {[%clk 0:00:06]} 45. Kf3 {[%clk 0:00:03]}  R4e5 {[%clk 0:00:06]} 46. Nc3 {[%clk 0:00:02]}  Rxf5+ {[%clk 0:00:06]} 47. Kg4 {[%clk 0:00:03]}  Rc5 {[%clk 0:00:07]} 48. Nd5 {[%clk 0:00:04]}  Rxd5 {[%clk 0:00:07]} 49. Rxd5 {[%clk 0:00:05]}  Re5 {[%clk 0:00:08]} 50. Rd4 {[%clk 0:00:05]}  Rc5 {[%clk 0:00:08]} 51. c4 {[%clk 0:00:05]}  Kf7 {[%clk 0:00:09]} 52. Rf4+ {[%clk 0:00:05]}  Ke7 {[%clk 0:00:09]} 53. Re4+ {[%clk 0:00:06]}  Kd7 {[%clk 0:00:09]} 54. Rf4 {[%clk 0:00:06]}  Be7 {[%clk 0:00:10]} 55. Rf7 {[%clk 0:00:07]}  g5 {[%clk 0:00:10]} 56. Rh7 {[%clk 0:00:07]}  Re5 {[%clk 0:00:11]} 57. Rh8 {[%clk 0:00:07]}  Kc6 {[%clk 0:00:11]} 58. Rb8 {[%clk 0:00:06]}  Kc5 {[%clk 0:00:11]} 59. Rb5+ {[%clk 0:00:06]}  Kd4 {[%clk 0:00:12]} 60. Rb7 {[%clk 0:00:06]}  Kc3 {[%clk 0:00:11]} 61. Kh5 {[%clk 0:00:06]}  Kd4 {[%clk 0:00:10]} 62. Kg4 {[%clk 0:00:06]}  Ke4 {[%clk 0:00:11]} 63. Ra7 {[%clk 0:00:05]}  Kd4 {[%clk 0:00:11]} 64. Rb7 {[%clk 0:00:05]} 1/2-1/2


[Site "https://www.chess.com"]

[Event "Titled Tuesday Blitz July 13 2021"]
[White "Turzo, Attila"]
[Black "Flores Quillas, Diego Saul Rodri"]
[WhiteFideId "704954"]
[BlackFideId "3822508"]
[WhiteElo "2443"]
[BlackElo "2071"]
[Result "0-1"]
[Round "06"]
[TimeControl "180+1"]
[Date "2021.07.13"]
[WhiteClock "0:00:17"]
[BlackClock "0:00:33"]

1. d4 {[%clk 0:03:00]}  Nf6 {[%clk 0:02:56]} 2. c4 {[%clk 0:03:00]}  c5 {[%clk 0:02:56]} 3. d5 {[%clk 0:02:59]}  e6 {[%clk 0:02:56]} 4. Nc3 {[%clk 0:02:58]}  exd5 {[%clk 0:02:56]} 5. cxd5 {[%clk 0:02:59]}  d6 {[%clk 0:02:55]} 6. e4 {[%clk 0:02:58]}  g6 {[%clk 0:02:53]} 7. h3 {[%clk 0:02:48]}  Bg7 {[%clk 0:02:49]} 8. Nf3 {[%clk 0:02:45]}  O-O {[%clk 0:02:48]} 9. Bd3 {[%clk 0:02:45]}  a6 {[%clk 0:02:40]} 10. a4 {[%clk 0:02:41]}  Re8 {[%clk 0:02:41]} 11. O-O {[%clk 0:02:40]}  Nbd7 {[%clk 0:02:40]} 12. a5 {[%clk 0:02:36]}  Nh5 {[%clk 0:02:36]} 13. Re1 {[%clk 0:02:35]}  Ne5 {[%clk 0:02:35]} 14. Nxe5 {[%clk 0:02:10]}  Bxe5 {[%clk 0:02:33]} 15. Qf3 {[%clk 0:02:07]}  Qf6 {[%clk 0:02:31]} 16. Qxf6 {[%clk 0:02:03]}  Nxf6 {[%clk 0:02:27]} 17. g4 {[%clk 0:01:53]}  Bxc3 {[%clk 0:02:21]} 18. bxc3 {[%clk 0:01:52]}  Nxd5 {[%clk 0:02:21]} 19. Bd2 {[%clk 0:01:47]}  Nc7 {[%clk 0:02:21]} 20. c4 {[%clk 0:01:43]}  Bd7 {[%clk 0:02:19]} 21. Bc3 {[%clk 0:01:22]}  Bc6 {[%clk 0:02:13]} 22. e5 {[%clk 0:01:18]}  dxe5 {[%clk 0:02:09]} 23. Bxe5 {[%clk 0:01:15]}  Ne6 {[%clk 0:02:10]} 24. Bf6 {[%clk 0:01:10]}  Nf4 {[%clk 0:02:05]} 25. Bf1 {[%clk 0:01:11]}  Rxe1 {[%clk 0:02:01]} 26. Rxe1 {[%clk 0:01:10]}  Re8 {[%clk 0:02:01]} 27. Rxe8+ {[%clk 0:01:09]}  Bxe8 {[%clk 0:02:02]} 28. Be7 {[%clk 0:01:04]}  Ne6 {[%clk 0:02:00]} 29. Bg2 {[%clk 0:01:03]}  Bc6 {[%clk 0:02:00]} 30. Bd5 {[%clk 0:01:02]}  Nf4 {[%clk 0:01:38]} 31. Bxc6 {[%clk 0:00:52]}  bxc6 {[%clk 0:01:38]} 32. Kh2 {[%clk 0:00:52]}  Ne6 {[%clk 0:01:35]} 33. Kg3 {[%clk 0:00:50]}  f5 {[%clk 0:01:35]} 34. gxf5 {[%clk 0:00:47]}  gxf5 {[%clk 0:01:36]} 35. Kf3 {[%clk 0:00:44]}  Kf7 {[%clk 0:01:36]} 36. Bd6 {[%clk 0:00:44]}  Ng5+ {[%clk 0:01:27]} 37. Kf4 {[%clk 0:00:33]}  Ne4 {[%clk 0:01:08]} 38. Be5 {[%clk 0:00:31]}  Ke6 {[%clk 0:01:07]} 39. Bg7 {[%clk 0:00:23]}  Nxf2 {[%clk 0:01:02]} 40. h4 {[%clk 0:00:20]}  Ne4 {[%clk 0:01:01]} 41. h5 {[%clk 0:00:20]}  Nd6 {[%clk 0:00:55]} 42. Bf8 {[%clk 0:00:19]}  Nxc4 {[%clk 0:00:54]} 43. Bxc5 {[%clk 0:00:19]}  Ne5 {[%clk 0:00:54]} 44. Kg5 {[%clk 0:00:19]}  Nf7+ {[%clk 0:00:53]} 45. Kf4 {[%clk 0:00:19]}  Nd6 {[%clk 0:00:46]} 46. Bxd6 {[%clk 0:00:15]}  Kxd6 {[%clk 0:00:45]} 47. Kxf5 {[%clk 0:00:16]}  c5 {[%clk 0:00:45]} 48. Kf6 {[%clk 0:00:16]}  c4 {[%clk 0:00:46]} 49. Kg7 {[%clk 0:00:16]}  c3 {[%clk 0:00:46]} 50. Kxh7 {[%clk 0:00:17]}  c2 {[%clk 0:00:47]} 51. h6 {[%clk 0:00:18]}  c1=Q {[%clk 0:00:47]} 52. Kg7 {[%clk 0:00:19]}  Qc3+ {[%clk 0:00:47]} 53. Kg8 {[%clk 0:00:18]}  Qc8+ {[%clk 0:00:46]} 54. Kg7 {[%clk 0:00:18]}  Qd7+ {[%clk 0:00:47]} 55. Kg8 {[%clk 0:00:19]}  Qg4+ {[%clk 0:00:45]} 56. Kh8 {[%clk 0:00:18]}  Qg5 {[%clk 0:00:36]} 57. h7 {[%clk 0:00:18]}  Qxa5 {[%clk 0:00:36]} 58. Kg8 {[%clk 0:00:18]}  Qg5+ {[%clk 0:00:36]} 59. Kf7 {[%clk 0:00:17]}  Qh6 {[%clk 0:00:32]} 60. Kg8 {[%clk 0:00:17]}  a5 {[%clk 0:00:33]} 0-1


[Site "https://www.chess.com"]

[Event "Titled Tuesday Blitz July 13 2021"]
[White "Wagner, Dennis"]
[Black "Allahverdiyeva, Ayan"]
[WhiteFideId "24650684"]
[BlackFideId "13412590"]
[WhiteElo "2355"]
[BlackElo "1910"]
[Result "1-0"]
[Round "06"]
[TimeControl "180+1"]
[Date "2021.07.13"]
[WhiteClock "0:02:25"]
[BlackClock "0:00:01"]

1. Nf3 {[%clk 0:03:00]}  Nf6 {[%clk 0:02:59]} 2. e3 {[%clk 0:02:59]}  g6 {[%clk 0:02:59]} 3. d4 {[%clk 0:02:58]}  Bg7 {[%clk 0:02:59]} 4. c4 {[%clk 0:02:59]}  O-O {[%clk 0:02:59]} 5. Be2 {[%clk 0:03:00]}  d6 {[%clk 0:02:59]} 6. O-O {[%clk 0:03:01]}  Nbd7 {[%clk 0:02:59]} 7. Nc3 {[%clk 0:03:01]}  e5 {[%clk 0:03:00]} 8. b3 {[%clk 0:03:01]}  Re8 {[%clk 0:02:56]} 9. Bb2 {[%clk 0:03:01]}  e4 {[%clk 0:02:56]} 10. Nd2 {[%clk 0:03:01]}  Nf8 {[%clk 0:02:51]} 11. b4 {[%clk 0:03:00]}  h5 {[%clk 0:02:49]} 12. a4 {[%clk 0:02:59]}  h4 {[%clk 0:02:46]} 13. h3 {[%clk 0:02:58]}  N8h7 {[%clk 0:02:44]} 14. Re1 {[%clk 0:02:57]}  Ng5 {[%clk 0:02:32]} 15. Bf1 {[%clk 0:02:57]}  Bf5 {[%clk 0:02:30]} 16. b5 {[%clk 0:02:55]}  c6 {[%clk 0:01:51]} 17. a5 {[%clk 0:02:53]}  d5 {[%clk 0:01:48]} 18. a6 {[%clk 0:02:53]}  dxc4 {[%clk 0:01:17]} 19. axb7 {[%clk 0:02:50]}  Rb8 {[%clk 0:01:17]} 20. bxc6 {[%clk 0:02:51]}  Nd5 {[%clk 0:01:00]} 21. Bxc4 {[%clk 0:02:44]}  Nxc3 {[%clk 0:00:40]} 22. Bxc3 {[%clk 0:02:45]}  Bf8 {[%clk 0:00:39]} 23. Rxa7 {[%clk 0:02:42]}  Bd6 {[%clk 0:00:35]} 24. Ra5 {[%clk 0:02:36]}  Bc7 {[%clk 0:00:24]} 25. Rxf5 {[%clk 0:02:34]}  gxf5 {[%clk 0:00:19]} 26. Qh5 {[%clk 0:02:35]}  Qf6 {[%clk 0:00:07]} 27. Rb1 {[%clk 0:02:28]}  Nh7 {[%clk 0:00:07]} 28. Rb5 {[%clk 0:02:26]}  Re7 {[%clk 0:00:07]} 29. Rxf5 {[%clk 0:02:24]}  Qd6 {[%clk 0:00:07]} 30. Bxf7+ {[%clk 0:02:24]}  Kf8 {[%clk 0:00:02]} 31. Qxh7 {[%clk 0:02:24]}  Qh2+ {[%clk 0:00:01]} 32. Kf1 {[%clk 0:02:25]}  Qh1+ {[%clk 0:00:01]} 33. Ke2 {[%clk 0:02:25]} 1-0


[Site "https://www.chess.com"]

[Event "Titled Tuesday Blitz July 13 2021"]
[White "Weetik, Vjacheslav"]
[Black "Tologon tegin, Semetei"]
[WhiteFideId "4153472"]
[BlackFideId "13800574"]
[WhiteElo "2469"]
[BlackElo "2224"]
[Result "1-0"]
[Round "06"]
[TimeControl "180+1"]
[Date "2021.07.13"]
[WhiteClock "0:00:07"]
[BlackClock "0:00:05"]

1. d4 {[%clk 0:03:00]}  Nf6 {[%clk 0:02:59]} 2. Bf4 {[%clk 0:03:00]}  d5 {[%clk 0:02:58]} 3. e3 {[%clk 0:03:00]}  c5 {[%clk 0:02:59]} 4. c3 {[%clk 0:03:00]}  Nc6 {[%clk 0:02:59]} 5. Nd2 {[%clk 0:03:01]}  cxd4 {[%clk 0:02:59]} 6. exd4 {[%clk 0:03:00]}  Bf5 {[%clk 0:02:59]} 7. Ngf3 {[%clk 0:03:00]}  e6 {[%clk 0:02:59]} 8. Nh4 {[%clk 0:03:00]}  Bg6 {[%clk 0:02:58]} 9. Nxg6 {[%clk 0:02:43]}  hxg6 {[%clk 0:02:59]} 10. h3 {[%clk 0:02:41]}  Bd6 {[%clk 0:02:59]} 11. Be3 {[%clk 0:02:41]}  Qc7 {[%clk 0:02:49]} 12. g3 {[%clk 0:02:29]}  e5 {[%clk 0:02:34]} 13. dxe5 {[%clk 0:02:25]}  Nxe5 {[%clk 0:02:34]} 14. Nb3 {[%clk 0:02:16]}  a6 {[%clk 0:02:19]} 15. Bg2 {[%clk 0:01:44]}  Nc4 {[%clk 0:02:14]} 16. Bc1 {[%clk 0:01:09]}  Bxg3 {[%clk 0:01:36]} 17. fxg3 {[%clk 0:01:09]}  Qxg3+ {[%clk 0:01:35]} 18. Kf1 {[%clk 0:01:09]}  Rh5 {[%clk 0:01:36]} 19. Qe1+ {[%clk 0:00:59]}  Qxe1+ {[%clk 0:01:31]} 20. Kxe1 {[%clk 0:01:00]}  O-O-O {[%clk 0:01:28]} 21. Nd4 {[%clk 0:00:52]}  Ne4 {[%clk 0:01:18]} 22. Rf1 {[%clk 0:00:36]}  f5 {[%clk 0:01:10]} 23. Kd1 {[%clk 0:00:29]}  Re8 {[%clk 0:00:36]} 24. b3 {[%clk 0:00:26]}  Ne5 {[%clk 0:00:34]} 25. Kc2 {[%clk 0:00:24]}  Kd7 {[%clk 0:00:20]} 26. Bf4 {[%clk 0:00:24]}  Nf7 {[%clk 0:00:15]} 27. Rae1 {[%clk 0:00:18]}  Rc8 {[%clk 0:00:12]} 28. Re3 {[%clk 0:00:10]}  g5 {[%clk 0:00:12]} 29. Bh2 {[%clk 0:00:10]}  g6 {[%clk 0:00:12]} 30. Kb2 {[%clk 0:00:09]}  Nfd6 {[%clk 0:00:09]} 31. a4 {[%clk 0:00:07]}  Rh7 {[%clk 0:00:08]} 32. Rd1 {[%clk 0:00:06]}  f4 {[%clk 0:00:07]} 33. Rf3 {[%clk 0:00:04]}  Re7 {[%clk 0:00:08]} 34. Nc2 {[%clk 0:00:03]}  Re5 {[%clk 0:00:07]} 35. Nb4 {[%clk 0:00:04]}  Ke6 {[%clk 0:00:07]} 36. h4 {[%clk 0:00:04]}  Nf5 {[%clk 0:00:03]} 37. hxg5 {[%clk 0:00:04]}  Ne3 {[%clk 0:00:04]} 38. Rxe3 {[%clk 0:00:05]}  fxe3 {[%clk 0:00:04]} 39. Bxe5 {[%clk 0:00:05]}  Kxe5 {[%clk 0:00:05]} 40. Nd3+ {[%clk 0:00:06]}  Kf5 {[%clk 0:00:05]} 41. Bh3+ {[%clk 0:00:06]}  Kxg5 {[%clk 0:00:05]} 42. Bxc8 {[%clk 0:00:07]} 1-0


[Site "https://www.chess.com"]

[Event "Titled Tuesday Blitz July 13 2021"]
[White "Xie, Bryan"]
[Black "Reprintsev, Alexander"]
[WhiteFideId "30941296"]
[BlackFideId "14100541"]
[WhiteElo "1899"]
[BlackElo "2126"]
[Result "0-1"]
[Round "06"]
[TimeControl "180+1"]
[Date "2021.07.13"]
[WhiteClock "0:01:33"]
[BlackClock "0:01:16"]

1. e4 {[%clk 0:03:00]}  d5 {[%clk 0:02:05]} 2. exd5 {[%clk 0:02:59]}  Qxd5 {[%clk 0:02:05]} 3. Nc3 {[%clk 0:02:59]}  Qa5 {[%clk 0:02:05]} 4. d4 {[%clk 0:02:59]}  Nf6 {[%clk 0:02:05]} 5. Bc4 {[%clk 0:03:00]}  Bg4 {[%clk 0:02:05]} 6. Ne2 {[%clk 0:02:54]}  Nc6 {[%clk 0:02:04]} 7. f3 {[%clk 0:02:53]}  Be6 {[%clk 0:02:04]} 8. Bxe6 {[%clk 0:02:48]}  fxe6 {[%clk 0:02:05]} 9. O-O {[%clk 0:02:49]}  O-O-O {[%clk 0:02:05]} 10. Be3 {[%clk 0:02:49]}  e5 {[%clk 0:02:04]} 11. f4 {[%clk 0:02:25]}  exd4 {[%clk 0:02:00]} 12. Nxd4 {[%clk 0:02:25]}  Nxd4 {[%clk 0:02:00]} 13. Bxd4 {[%clk 0:02:26]}  c5 {[%clk 0:01:58]} 14. b4 {[%clk 0:02:21]}  Qxb4 {[%clk 0:01:57]} 15. Rb1 {[%clk 0:02:22]}  Qxd4+ {[%clk 0:01:57]} 16. Qxd4 {[%clk 0:02:21]}  cxd4 {[%clk 0:01:54]} 17. Nb5 {[%clk 0:02:21]}  a6 {[%clk 0:01:52]} 18. Na3 {[%clk 0:02:21]}  e6 {[%clk 0:01:52]} 19. Nc4 {[%clk 0:02:21]}  Bc5 {[%clk 0:01:51]} 20. Kh1 {[%clk 0:02:21]}  Nd5 {[%clk 0:01:50]} 21. Ne5 {[%clk 0:02:11]}  Rhf8 {[%clk 0:01:49]} 22. g3 {[%clk 0:02:09]}  Nc3 {[%clk 0:01:43]} 23. Rb2 {[%clk 0:02:08]}  Bd6 {[%clk 0:01:42]} 24. Nd3 {[%clk 0:02:05]}  h6 {[%clk 0:01:40]} 25. Kg2 {[%clk 0:01:44]}  g5 {[%clk 0:01:38]} 26. fxg5 {[%clk 0:01:44]}  Rxf1 {[%clk 0:01:36]} 27. Kxf1 {[%clk 0:01:45]}  hxg5 {[%clk 0:01:35]} 28. Kg2 {[%clk 0:01:43]}  g4 {[%clk 0:01:35]} 29. h3 {[%clk 0:01:43]}  gxh3+ {[%clk 0:01:34]} 30. Kxh3 {[%clk 0:01:44]}  Rh8+ {[%clk 0:01:32]} 31. Kg2 {[%clk 0:01:43]}  Rg8 {[%clk 0:01:33]} 32. Rb6 {[%clk 0:01:42]}  Kc7 {[%clk 0:01:30]} 33. Rb3 {[%clk 0:01:41]}  Rxg3+ {[%clk 0:01:29]} 34. Kf2 {[%clk 0:01:41]}  Rh3 {[%clk 0:01:26]} 35. Kg2 {[%clk 0:01:40]}  Rh2+ {[%clk 0:01:25]} 36. Kf3 {[%clk 0:01:40]}  Rxc2 {[%clk 0:01:26]} 37. Nb4 {[%clk 0:01:35]}  Bxb4 {[%clk 0:01:25]} 38. Rxb4 {[%clk 0:01:36]}  e5 {[%clk 0:01:20]} 39. Rc4+ {[%clk 0:01:35]}  Kd6 {[%clk 0:01:20]} 40. Rc8 {[%clk 0:01:34]}  e4+ {[%clk 0:01:15]} 41. Kf4 {[%clk 0:01:34]}  Nd5+ {[%clk 0:01:15]} 42. Kxe4 {[%clk 0:01:33]}  Rxc8 {[%clk 0:01:16]} 0-1


[Site "https://www.chess.com"]